fUSD/lending_fUSD_20250202
["ID","MTS","AMOUNT","RATE_DAILY","PERIOD"]
[351312035,1738511491729,-500.0,0.00012328,2]
[351312036,1738511491738,-331.02446778,0.00012328,2]
[351312037,1738511491748,-500.0,0.00012328,2]
[351312038,1738511491757,-705.16,0.00012328,2]
[351312039,1738511491766,-531.92,0.00012328,2]
[351312040,1738511491775,-500.0,0.00012328,2]
[351312041,1738511491785,-500.0,0.00012328,2]
[351312042,1738511491794,-500.0,0.00012328,2]
[351312043,1738511491803,-646.84243801,0.00012328,2]
[351312044,1738511491812,-500.0,0.00012328,2]
[351312045,1738511491821,-500.0,0.00012328,2]
[351312046,1738511491830,-500.0,0.00012328,2]
[351312047,1738511491839,-500.0,0.00012328,2]
[351312048,1738511491850,-719.85,0.00012328,2]
[351312049,1738511491859,-594.38,0.00012328,2]
[351312050,1738511491869,-377.32145713,0.00012328,2]
[351312051,1738511491878,-563.78,0.00012328,2]
[351312052,1738511491887,-500.0,0.00012328,2]
[351312053,1738511491897,-500.0,0.00012328,2]
[351312054,1738511491906,-752.42,0.00012328,2]
[351312055,1738511491916,-500.0,0.00012328,2]
[351312056,1738511491925,-500.0,0.00012328,2]
[351312057,1738511491935,-743.8,0.00012328,2]
[351312058,1738511491944,-500.0,0.00012328,2]
[351312059,1738511491954,-500.0,0.00012328,2]
[351312060,1738511491963,-500.0,0.00012328,2]
[351312061,1738511491973,-500.0,0.00012328,2]
[351312062,1738511491982,-500.0,0.00012328,2]
[351312063,1738511491991,-500.0,0.00012328,2]
[351312064,1738511492001,-725.47,0.00012328,2]
[351312065,1738511492010,-764.06,0.00012328,2]
[351312066,1738511492019,-500.0,0.00012328,2]
[351312067,1738511492029,-500.0,0.00012328,2]
[351312068,1738511492040,-500.0,0.00012328,2]
[351312069,1738511492050,-500.0,0.00012328,2]
[351312070,1738511492059,-698.18,0.00012328,2]
[351312071,1738511492069,-791.74,0.00012328,2]
[351312072,1738511492078,-807.25,0.00012328,2]
[351312073,1738511492088,-547.53,0.00012328,2]
[351312074,1738511492097,-487.3857316,0.00012328,2]
[351312075,1738511492107,-500.0,0.00012328,2]
[351312076,1738511492117,-500.0,0.00012328,2]
[351312077,1738511492127,-500.0,0.00012328,2]
[351312078,1738511492136,-837.73,0.00012328,2]
[351312079,1738511492146,-621.45,0.00012328,2]
[351312080,1738511492156,-631.63,0.00012328,2]
[351312081,1738511492166,-799.17,0.00012328,2]
[351312082,1738511492175,-500.0,0.00012328,2]
[351312083,1738511492184,-771.95,0.00012328,2]
[351312084,1738511492194,-620.52,0.00012328,2]
[351312085,1738511492203,-618.87,0.00012328,2]
[351312086,1738511492212,-359.3344043,0.00012328,2]
[351312087,1738511492221,-616.27,0.00012328,2]
[351312088,1738511492231,-500.0,0.00012328,2]
[351312089,1738511492241,-441.72726992,0.00012328,2]
[351312090,1738511492251,-565.37,0.00012328,2]
[351312091,1738511492260,-559.84,0.00012328,2]
[351312092,1738511492270,-500.0,0.00012328,2]
[351312093,1738511492280,-500.0,0.00012328,2]
[351312094,1738511492289,-500.0,0.00012328,2]
[351312095,1738511492298,-500.0,0.00012328,2]
[351312096,1738511492308,-500.0,0.00012328,2]
[351312097,1738511492317,-780.81,0.00012328,2]
[351312098,1738511492326,-584.3,0.00012328,2]
[351312099,1738511492336,-500.0,0.00012328,2]
[351312100,1738511492345,-500.0,0.00012328,2]
[351312101,1738511492355,-2686.29,0.00012328,2]
[351312102,1738511492364,-500.0,0.00012328,2]
[351312103,1738511492373,-500.0,0.00012328,2]
[351312104,1738511492383,-808.37,0.00012328,2]
[351312105,1738511492392,-794.83,0.00012328,2]
[351312106,1738511492401,-2679.98,0.00012328,2]
[351312107,1738511492411,-500.0,0.00012328,2]
[351312108,1738511492420,-2338.08,0.00012328,2]
[351312109,1738511492430,-1073.23,0.00012328,2]
[351312110,1738511492439,-500.0,0.00012328,2]
[351312111,1738511492450,-500.0,0.00012328,2]
[351312112,1738511492460,-1816.82,0.00012328,2]
[351312113,1738511492470,-1683.79,0.00012328,2]
[351312114,1738511492480,-4162.42,0.00012328,2]
[351312115,1738511492490,-442.09188497,0.00012328,2]
[351312116,1738511492504,-3144.7,0.00012328,2]
[351312117,1738511492514,-500.0,0.00012328,2]
[351312118,1738511492523,-500.0,0.00012328,2]
[351312119,1738511492532,-575.75,0.00012328,2]
[351312120,1738511492697,-689.19,0.00012328,2]
[351312121,1738511492707,-305.292181,0.00012328,2]
[351312122,1738511492718,-1191.99,0.00012328,2]
[351312123,1738511492727,-851.33,0.00012328,2]
[351312124,1738511492736,-677.75,0.00012328,2]
[351312125,1738511492746,-155.403685,0.00012328,2]
[351312126,1738511492755,-325.84,0.00012328,2]
[351312127,1738511492764,-1595.43,0.00012328,2]
[351312128,1738511492774,-204.86355905,0.00012328,2]
[351312129,1738511492783,-2506.07,0.00012328,2]
[351312130,1738511492793,-842.15,0.00012328,2]
[351312131,1738511492802,-539.77,0.00012328,2]
[351312132,1738511492812,-500.0,0.00012328,2]
[351312133,1738511492822,-3571.76,0.00012328,2]
[351312134,1738511492832,-754.64,0.00012328,2]
[351312135,1738511492842,-779.97,0.00012328,2]
[351312136,1738511492853,-319.816449,0.00012328,2]
[351312137,1738511492862,-3366.95,0.00012328,2]
[351312138,1738511492872,-465.04,0.00012328,2]
[351312139,1738511492882,-1388.96,0.00012328,2]
[351312140,1738511492893,-1447.22,0.00012328,2]
[351312141,1738511492903,-1621.42,0.00012328,2]
[351312142,1738511492913,-1280.75,0.00012328,2]
[351312143,1738511492923,-2398.8,0.00012328,2]
[351312144,1738511492933,-986.99,0.00012328,2]
[351312145,1738511492943,-6074.3,0.00012328,2]
[351312146,1738511492953,-500.0,0.00012328,2]
[351312147,1738511492963,-886.37,0.00012328,2]
[351312148,1738511492973,-1376.7,0.00012328,2]
[351312149,1738511492983,-500.0,0.00012328,2]
[351312150,1738511492993,-715.29,0.00012328,2]
[351312151,1738511493002,-1472.49,0.00012328,2]
[351312152,1738511493012,-500.0,0.00012328,2]
[351312153,1738511493021,-520.69,0.00012328,2]
[351312154,1738511493031,-2816.92,0.00012328,2]
[351312155,1738511493041,-1537.46,0.00012328,2]
[351312156,1738511493051,-1782.22,0.00012328,2]
[351312157,1738511493061,-2593.44,0.00012328,2]
[351312158,1738511493071,-1707.98,0.00012328,2]
[351312159,1738511493081,-814.03,0.00012328,2]
[351312160,1738511493090,-2517.19,0.00012328,2]
[351312161,1738511493100,-500.0,0.00012328,2]
[351312162,1738511493109,-3495.99,0.00012328,2]
[351312163,1738511493120,-1097.15,0.00012328,2]
[351312164,1738511493129,-500.0,0.00012328,2]
[351312165,1738511493139,-3686.72,0.00012328,2]
[351312166,1738511493148,-873.88,0.00012328,2]
[351312167,1738511493158,-268.75,0.00012328,2]
[351312168,1738511493168,-4032.99,0.00012328,2]
[351312169,1738511493178,-500.0,0.00012328,2]
[351312170,1738511493188,-2612.06,0.00012328,2]
[351312171,1738511493197,-3411.01,0.00012328,2]
[351312172,1738511493208,-2404.98,0.00012328,2]
[351312173,1738511493219,-500.0,0.00012328,2]
[351312174,1738511493229,-500.0,0.00012328,2]
[351312175,1738511493239,-866.33,0.00012328,2]
[351312176,1738511493250,-3469.55,0.00012328,2]
[351312177,1738511493260,-1883.12,0.00012328,2]
[351312178,1738511493270,-500.0,0.00012328,2]
[351312179,1738511493280,-2058.8,0.00012328,2]
[351312180,1738511493290,-608.43,0.00012328,2]
[351312181,1738511493300,-1319.01,0.00012328,2]
[351312182,1738511493310,-2391.61,0.00012328,2]
[351312183,1738511493320,-4530.32,0.00012328,2]
[351312184,1738511493330,-500.0,0.00012328,2]
[351312185,1738511493339,-1228.14,0.00012328,2]
[351312186,1738511493349,-6198.62,0.00012328,2]
[351312187,1738511493358,-500.0,0.00012328,2]
[351312188,1738511493368,-4177.74,0.00012328,2]
[351312189,1738511493378,-500.0,0.00012328,2]
[351312190,1738511493387,-853.08,0.00012328,2]
[351312191,1738511493397,-500.0,0.00012328,2]
[351312192,1738511493407,-487.03,0.00012328,2]
[351312193,1738511493419,-669.71,0.00012328,2]
[351312194,1738511493429,-539.5,0.00012328,2]
[351312195,1738511493439,-1402.67,0.00012328,2]
[351312196,1738511493449,-1801.53,0.00012328,2]
[351312197,1738511493460,-1549.92,0.00012328,2]
[351312198,1738511493470,-500.0,0.00012328,2]
[351312199,1738511493480,-469.35413548,0.00012328,2]
[351312200,1738511493490,-820.42,0.00012328,2]
[351312201,1738511493504,-569.44,0.00012328,2]
[351312202,1738511493513,-935.02,0.00012328,2]
[351312203,1738511493523,-816.63,0.00012328,2]
[351312204,1738511493534,-500.0,0.00012328,2]
[351312205,1738511493544,-584.53,0.00012328,2]
[351312206,1738511493554,-885.67,0.00012328,2]
[351312207,1738511493564,-609.426977,0.00012329,2]
[351312208,1738511493574,-609.426977,0.00012329,2]
[351312209,1738511493584,-609.426977,0.00012329,2]
[351312210,1738511493594,-609.426977,0.00012329,2]
[351312211,1738511493603,-151.0,0.00012329,2]
[351312212,1738511493613,-151.0,0.00012329,2]
[351312213,1738511493623,-210.829427,0.00012329,2]
[351312214,1738511493633,-151.0,0.00012329,2]
[351312215,1738511493643,-151.0,0.00012329,2]
[351312216,1738511493653,-151.0,0.00012329,2]
[351312217,1738511493663,-151.0,0.00012329,2]
[351312218,1738511493673,-151.0,0.00012329,2]
[351312219,1738511493683,-151.0,0.00012329,2]
[351312220,1738511493692,-165.376134,0.00012329,2]
[351312221,1738511493701,-165.376134,0.00012329,2]
[351312222,1738511493711,-165.376134,0.00012329,2]
[351312223,1738511493721,-165.376134,0.00012329,2]
[351312224,1738511493731,-151.0,0.00012329,2]
[351312225,1738511493740,-151.823667,0.00012329,2]
[351312226,1738511493750,-213.037768,0.00012329,2]
[351312227,1738511493760,-260.520012,0.00012329,2]
[351312228,1738511493770,-260.520012,0.00012329,2]
[351312229,1738511493780,-260.520012,0.00012329,2]
[351312230,1738511493790,-260.520012,0.00012329,2]
[351312231,1738511493800,-217.374194,0.00012329,2]
[351312232,1738511493810,-217.374194,0.00012329,2]
[351312233,1738511493819,-217.374194,0.00012329,2]
[351312234,1738511493830,-217.374194,0.00012329,2]
[351312235,1738511493839,-218.4,0.00012329,2]
[351312236,1738511493849,-218.4,0.00012329,2]
[351312237,1738511493859,-218.4,0.00012329,2]
[351312238,1738511493868,-218.4,0.00012329,2]
[351312239,1738511493878,-218.4,0.00012329,2]
[351312240,1738511493888,-218.4,0.00012329,2]
[351312241,1738511493898,-151.0,0.00012329,2]
[351312242,1738511493908,-151.0,0.00012329,2]
[351312243,1738511493918,-151.0,0.00012329,2]
[351312244,1738511493929,-151.0,0.00012329,2]
[351312245,1738511493939,-814.253625,0.00012329,2]
[351312246,1738511493949,-814.253625,0.00012329,2]
[351312247,1738511493959,-814.253625,0.00012329,2]
[351312248,1738511493968,-814.253625,0.00012329,2]
[351312249,1738511493978,-814.253625,0.00012329,2]
[351312250,1738511493988,-814.253625,0.00012329,2]
[351312251,1738511493998,-151.0,0.00012329,2]
[351312252,1738511494008,-151.0,0.00012329,2]
[351312253,1738511494018,-151.0,0.00012329,2]
[351312254,1738511494028,-151.0,0.00012329,2]
[351312255,1738511494038,-189.785848,0.00012329,2]
[351312256,1738511494048,-172.046731,0.00012329,2]
[351312257,1738511494058,-172.046731,0.00012329,2]
[351312258,1738511494067,-172.046731,0.00012329,2]
[351312259,1738511494078,-172.046731,0.00012329,2]
[351312260,1738511494088,-172.046731,0.00012329,2]
[351312261,1738511494098,-172.046731,0.00012329,2]
[351312262,1738511494108,-151.0,0.00012329,2]
[351312263,1738511494118,-231.451958,0.00012329,2]
[351312264,1738511494128,-231.451958,0.00012329,2]
[351312265,1738511494137,-231.451958,0.00012329,2]
[351312266,1738511494147,-151.0,0.00012329,2]
[351312267,1738511494157,-151.0,0.00012329,2]
[351312268,1738511494167,-151.0,0.00012329,2]
[351312269,1738511494177,-151.0,0.00012329,2]
[351312270,1738511494187,-151.0,0.00012329,2]
[351312271,1738511494196,-231.451958,0.00012329,2]
[351312272,1738511494206,-231.451958,0.00012329,2]
[351312273,1738511494216,-151.0,0.00012329,2]
[351312274,1738511494225,-231.451958,0.00012329,2]
[351312275,1738511494235,-151.0,0.00012329,2]
[351312276,1738511494244,-151.0,0.00012329,2]
[351312277,1738511494254,-215.347021,0.00012329,2]
[351312278,1738511494263,-215.347021,0.00012329,2]
[351312279,1738511494273,-215.347021,0.00012329,2]
[351312280,1738511494282,-151.0,0.00012329,2]
[351312281,1738511494292,-215.347021,0.00012329,2]
[351312282,1738511494302,-151.0,0.00012329,2]
[351312283,1738511494311,-215.347021,0.00012329,2]
[351312284,1738511494321,-215.347021,0.00012329,2]
[351312285,1738511494330,-151.0,0.00012329,2]
[351312286,1738511494340,-151.0,0.00012329,2]
[351312287,1738511494350,-151.0,0.00012329,2]
[351312288,1738511494359,-151.0,0.00012329,2]
[351312289,1738511494370,-553.986468,0.00012329,2]
[351312290,1738511494379,-553.986468,0.00012329,2]
[351312291,1738511494389,-553.986468,0.00012329,2]
[351312292,1738511494399,-553.986468,0.00012329,2]
[351312293,1738511494408,-553.986468,0.00012329,2]
[351312294,1738511494418,-151.0,0.00012329,2]
[351312295,1738511494427,-151.0,0.00012329,2]
[351312296,1738511494437,-151.0,0.00012329,2]
[351312297,1738511494446,-151.0,0.00012329,2]
[351312298,1738511494456,-151.0,0.00012329,2]
[351312299,1738511494466,-151.0,0.00012329,2]
[351312300,1738511494477,-652.17835,0.00012329,2]
[351312301,1738511494487,-652.17835,0.00012329,2]
[351312302,1738511494501,-652.17835,0.00012329,2]
[351312303,1738511494511,-151.0,0.00012329,2]
[351312304,1738511494520,-652.17835,0.00012329,2]
[351312305,1738511494530,-151.0,0.00012329,2]
[351312306,1738511494541,-652.17835,0.00012329,2]
[351312307,1738511494551,-151.0,0.00012329,2]
[351312308,1738511494560,-652.17835,0.00012329,2]
[351312309,1738511494569,-151.0,0.00012329,2]
[351312310,1738511494580,-151.0,0.00012329,2]
[351312311,1738511494589,-151.0,0.00012329,2]
[351312312,1738511494599,-705.724075,0.00012329,2]
[351312313,1738511494608,-705.724075,0.00012329,2]
[351312314,1738511494618,-1931.954796,0.00012329,2]
[351312315,1738511494628,-1931.954796,0.00012329,2]
[351312316,1738511494638,-705.724075,0.00012329,2]
[351312317,1738511494648,-1931.954796,0.00012329,2]
[351312318,1738511494658,-705.724075,0.00012329,2]
[351312319,1738511494669,-705.724075,0.00012329,2]
[351312320,1738511494679,-1931.954796,0.00012329,2]
[351312321,1738511494688,-705.724075,0.00012329,2]
[351312322,1738511494698,-1931.954796,0.00012329,2]
[351312323,1738511494708,-269.295923,0.00012329,2]
[351312324,1738511494719,-1931.954796,0.00012329,2]
[351312325,1738511494730,-269.295923,0.00012329,2]
[351312326,1738511494739,-269.295923,0.00012329,2]
[351312327,1738511494749,-269.295923,0.00012329,2]
[351312328,1738511494759,-269.295923,0.00012329,2]
[351312329,1738511494769,-269.295923,0.00012329,2]
[351312330,1738511494778,-269.295923,0.00012329,2]
[351312331,1738511494788,-269.295923,0.00012329,2]
[351312332,1738511494798,-151.0,0.00012329,2]
[351312333,1738511494808,-151.0,0.00012329,2]
[351312334,1738511494817,-151.0,0.00012329,2]
[351312335,1738511494827,-152.633865,0.00012329,2]
[351312336,1738511494838,-151.0,0.00012329,2]
[351312337,1738511494848,-151.0,0.00012329,2]
[351312338,1738511494858,-151.0,0.00012329,2]
[351312339,1738511494867,-151.0,0.00012329,2]
[351312340,1738511494878,-151.134267,0.00012329,2]
[351312341,1738511494888,-151.0,0.00012329,2]
[351312342,1738511494897,-151.0,0.00012329,2]
[351312343,1738511494907,-151.0,0.00012329,2]
[351312344,1738511494917,-2873.430661,0.00012329,2]
[351312345,1738511494927,-2873.430661,0.00012329,2]
[351312346,1738511494936,-2873.430661,0.00012329,2]
[351312347,1738511494947,-2873.430661,0.00012329,2]
[351312348,1738511494956,-2873.430661,0.00012329,2]
[351312349,1738511494966,-2873.430661,0.00012329,2]
[351312350,1738511494975,-2873.430661,0.00012329,2]
[351312351,1738511494985,-2873.430661,0.00012329,2]
[351312352,1738511494994,-222.401033,0.00012329,2]
[351312353,1738511495003,-222.401033,0.00012329,2]
[351312354,1738511495013,-222.401033,0.00012329,2]
[351312355,1738511495022,-222.401033,0.00012329,2]
[351312356,1738511495032,-222.401033,0.00012329,2]
[351312357,1738511495042,-222.401033,0.00012329,2]
[351312358,1738511495052,-222.401033,0.00012329,2]
[351312359,1738511495061,-222.401033,0.00012329,2]
[351312360,1738511495071,-151.0,0.00012329,2]
[351312361,1738511495081,-151.0,0.00012329,2]
[351312362,1738511495090,-151.0,0.00012329,2]
[351312363,1738511495100,-151.0,0.00012329,2]
[351312364,1738511495110,-161.73379,0.00012329,2]
[351312365,1738511495119,-161.73379,0.00012329,2]
[351312366,1738511495129,-161.73379,0.00012329,2]
[351312367,1738511495139,-161.73379,0.00012329,2]
[351312368,1738511495149,-161.73379,0.00012329,2]
[351312369,1738511495158,-161.73379,0.00012329,2]
[351312370,1738511495167,-161.73379,0.00012329,2]
[351312371,1738511495177,-161.73379,0.00012329,2]
[351312372,1738511495187,-1289.080245,0.00012329,2]
[351312373,1738511495197,-1289.080245,0.00012329,2]
[351312374,1738511495207,-1289.080245,0.00012329,2]
[351312375,1738511495217,-1289.080245,0.00012329,2]
[351312376,1738511495227,-1289.080245,0.00012329,2]
[351312377,1738511495237,-1289.080245,0.00012329,2]
[351312378,1738511495247,-1289.080245,0.00012329,2]
[351312379,1738511495257,-1289.080245,0.00012329,2]
[351312380,1738511495268,-151.0,0.00012329,2]
[351312381,1738511495277,-151.0,0.00012329,2]
[351312382,1738511495288,-151.0,0.00012329,2]
[351312383,1738511495297,-151.0,0.00012329,2]
[351312384,1738511495307,-151.0,0.00012329,2]
[351312385,1738511495467,-151.0,0.00012329,2]
[351312386,1738511495478,-151.0,0.00012329,2]
[351312387,1738511495488,-203.936048,0.00012329,2]
[351312388,1738511495502,-151.0,0.00012329,2]
[351312389,1738511495512,-151.0,0.00012329,2]
[351312390,1738511495522,-151.0,0.00012329,2]
[351312391,1738511495532,-151.0,0.00012329,2]
[351312392,1738511495543,-151.0,0.00012329,2]
[351312393,1738511495553,-151.0,0.00012329,2]
[351312394,1738511495562,-151.0,0.00012329,2]
[351312395,1738511495574,-151.0,0.00012329,2]
[351312396,1738511495587,-151.0,0.00012329,2]
[351312397,1738511495596,-151.0,0.00012329,2]
[351312398,1738511495606,-151.0,0.00012329,2]
[351312399,1738511495616,-151.0,0.00012329,2]
[351312400,1738511495626,-152.492698,0.00012329,2]
[351312401,1738511495635,-151.0,0.00012329,2]
[351312402,1738511495645,-151.0,0.00012329,2]
[351312403,1738511495654,-151.0,0.00012329,2]
[351312404,1738511495663,-151.0,0.00012329,2]
[351312405,1738511495673,-286.577613,0.00012329,2]
[351312406,1738511495683,-151.403218,0.00012329,2]
[351312407,1738511495693,-225.089609,0.00012329,2]
[351312408,1738511495703,-225.089609,0.00012329,2]
[351312409,1738511495714,-225.089609,0.00012329,2]
[351312410,1738511495724,-225.089609,0.00012329,2]
[351312411,1738511495734,-151.0,0.00012329,2]
[351312412,1738511495743,-166.66,0.00012383,2]
[351312413,1738511495753,-30000.0,0.00012444,2]
[351312414,1738511495763,-553.986468,0.00012458,2]
[351312415,1738511495773,-553.986468,0.00012458,2]
[351312416,1738511495783,-151.0,0.00012458,2]
[351312417,1738511495792,-151.0,0.00012458,2]
[351312418,1738511495802,-652.17835,0.00012458,2]
[351312419,1738511495812,-151.0,0.00012458,2]
[351312420,1738511495821,-652.17835,0.00012458,2]
[351312421,1738511495831,-151.0,0.00012458,2]
[351312422,1738511495842,-705.724075,0.00012458,2]
[351312423,1738511495851,-1931.954796,0.00012458,2]
[351312424,1738511495862,-705.724075,0.00012458,2]
[351312425,1738511495872,-1931.954796,0.00012458,2]
[351312426,1738511495882,-152.820116,0.00012458,2]
[351312427,1738511495891,-1332.82,0.00012458,2]
[351312428,1738511495901,-1964.01,0.00012458,2]
[351312429,1738511495912,-2603.59,0.00012458,2]
[351312430,1738511495923,-2889.94,0.00012458,2]
[351312431,1738511495933,-4743.23,0.00012458,2]
[351312432,1738511495944,-10523.62,0.00012458,2]
[351312433,1738511495953,-1554.63,0.00012458,2]
[351312434,1738511495963,-1284.59,0.00012458,2]
[351312435,1738511495974,-1679.21,0.00012458,2]
[351312436,1738511495984,-2652.81,0.00012458,2]
[351312437,1738511495994,-654.17,0.00012458,2]
[351312438,1738511496004,-1718.82,0.00012458,2]
[351312439,1738511496014,-1974.37,0.00012458,2]
[351312440,1738511496023,-2000.83,0.00012458,2]
[351312441,1738511496032,-836.56,0.00012458,2]
[351312442,1738511496042,-1343.39,0.00012458,2]
[351312443,1738511496052,-1186.75,0.00012458,2]
[351312444,1738511496062,-500.0,0.00012459,2]
[351312445,1738511496072,-500.0,0.00012459,2]
[351312446,1738511496082,-596.58,0.00012459,2]
[351312447,1738511496102,-544.52724762,0.00012459,2]
[351312448,1738511496112,-500.0,0.00012459,2]
[351312449,1738511496122,-710.49,0.00012459,2]
[351312450,1738511496132,-1187.42,0.0001246,2]
[351312451,1738511496143,-817.82,0.0001246,2]
[351312452,1738511496153,-607.41,0.0001246,2]
[351312453,1738511496164,-500.0,0.0001246,2]
[351312454,1738511496174,-1230.03,0.0001246,2]
[351312455,1738511496185,-615.34,0.0001246,2]
[351312456,1738511496195,-714.07,0.0001246,2]
[351312457,1738511496207,-1449.17,0.0001246,2]
[351312458,1738511496217,-1251.19,0.0001246,2]
[351312459,1738511496227,-1405.84,0.0001246,2]
[351312460,1738511496237,-1494.61,0.0001246,2]
[351312461,1738511496248,-828.44,0.0001246,2]
[351312462,1738511496258,-500.0,0.0001246,2]
[351312463,1738511496269,-676.04,0.0001246,2]
[351312464,1738511496279,-535.23,0.0001246,2]
[351312465,1738511496289,-1723.36,0.0001246,2]
[351312466,1738511496299,-854.84,0.0001246,2]
[351312467,1738511496309,-1459.08,0.0001246,2]
[351312468,1738511496321,-1678.19,0.0001246,2]
[351312470,1738511496331,-571.62,0.0001246,2]
[351312471,1738511496341,-780.5,0.0001246,2]
[351312472,1738511496351,-500.0,0.0001246,2]
[351312473,1738511496361,-1296.82,0.0001246,2]
[351312474,1738511496372,-1446.98,0.0001246,2]
[351312475,1738511496382,-500.0,0.0001246,2]
[351312476,1738511496393,-618.81,0.0001246,2]
[351312477,1738511496403,-730.18,0.0001246,2]
[351312478,1738511496414,-609.86,0.0001246,2]
[351312479,1738511496424,-978.46,0.00012464,2]
[351312480,1738511496435,-518.13,0.00012464,2]
[351312481,1738511496445,-500.0,0.00012464,2]
[351312482,1738511496455,-1147.35,0.00012464,2]
[351312483,1738511496465,-668.46,0.00012464,2]
[351312484,1738511496475,-1211.37,0.00012464,2]
[351312485,1738511496485,-625.76510012,0.00012464,2]
[351312486,1738511496497,-594.76,0.00012464,2]
[351312487,1738511496507,-1093.43,0.00012464,2]
[351312488,1738511496518,-500.0,0.00012464,2]
[351312489,1738511496528,-500.0,0.00012464,2]
[351312490,1738511496539,-500.0,0.00012464,2]
[351312491,1738511496549,-500.0,0.00012464,2]
[351312492,1738511496559,-500.0,0.00012464,2]
[351312493,1738511496569,-829.51,0.00012464,2]
[351312494,1738511496580,-500.0,0.00012464,2]
[351312495,1738511496590,-500.0,0.00012464,2]
[351312496,1738511496600,-1097.71,0.00012464,2]
[351312497,1738511496611,-1068.84,0.00012464,2]
[351312498,1738511496621,-500.0,0.00012464,2]
[351312499,1738511496632,-500.0,0.00012464,2]
[351312500,1738511496642,-500.0,0.00012464,2]
[351312501,1738511496652,-500.0,0.00012464,2]
[351312502,1738511496663,-561.08,0.00012464,2]
[351312503,1738511496675,-500.0,0.00012464,2]
[351312504,1738511496685,-500.0,0.00012464,2]
[351312505,1738511496695,-515.69,0.00012464,2]
[351312506,1738511496705,-653.67,0.00012464,2]
[351312507,1738511496715,-1093.31,0.00012464,2]
[351312508,1738511496725,-1053.18,0.00012464,2]
[351312509,1738511496735,-500.0,0.00012464,2]
[351312510,1738511496745,-1273.51,0.00012464,2]
[351312511,1738511496755,-522.28,0.00012464,2]
[351312512,1738511496765,-1239.31,0.00012464,2]
[351312513,1738511496775,-740.34,0.00012464,2]
[351312514,1738511496785,-500.0,0.00012464,2]
[351312515,1738511496795,-644.61,0.00012464,2]
[351312516,1738511496806,-913.35,0.00012464,2]
[351312517,1738511496817,-1062.0,0.00012464,2]
[351312518,1738511496827,-1115.18,0.00012464,2]
[351312519,1738511496837,-945.68,0.00012464,2]
[351312520,1738511496849,-607.69,0.00012464,2]
[351312521,1738511496859,-500.0,0.00012464,2]
[351312522,1738511496870,-522.96,0.00012464,2]
[351312523,1738511496880,-1035.26,0.00012464,2]
[351312524,1738511496890,-2196.81,0.00012464,2]
[351312525,1738511496901,-500.0,0.00012464,2]
[351312526,1738511496911,-1325.26,0.00012464,2]
[351312527,1738511496923,-975.31,0.00012464,2]
[351312528,1738511496934,-1985.37,0.00012464,2]
[351312529,1738511496944,-918.08,0.00012464,2]
[351312530,1738511496954,-2083.26,0.00012464,2]
[351312531,1738511496965,-1965.57,0.00012464,2]
[351312532,1738511496975,-1323.45,0.00012464,2]
[351312533,1738511496986,-1635.63,0.00012464,2]
[351312534,1738511496996,-500.0,0.00012464,2]
[351312535,1738511497007,-5662.33,0.00012464,2]